Cogmind - Beta 14 @@@ ROGUE MODE // 2024.09.08 @ 18:34:34 Player: ILikeVoltron Result: Destroyed by as-59398 with Assembled Rifle Performance ------------- Evolutions (0) 0 Regions Visited (2) 400 Robots Destroyed (23) 115 Value Destroyed (378) 378 Prototype IDs (0) 0 Alien Tech Used (0) 0 Bonus (0) 0 TOTAL SCORE: 893 Bonus ------- None Cogmind --------- Core Integrity 0/250 Matter 300/300 Energy 100/100 System Corruption 6% Temperature Cool (0) Movement Core (800) Ox15 Location -10/Mines Parts ------- > --- POWER (1) -------- (None) > --- PROPULSION (2) --- (None) > --- UTILITY (2) ------ High-capacity Storage Unit > --- WEAPON (2) ------- Great Maul Scythe > --- INVENTORY (20) --- Light Ion Engine Light Ion Engine Light Treads Light Treads Light Treads Aluminum Leg High-capacity Matter Pod (200) Signal Interpreter Recoil Stabilizer Weapon Shielding Light Armor Plating Hardlight Generator Hacking Suite High-powered Tractor Beam Medium Laser Small Laser Small Laser Light Assault Rifle Grenade Launcher Improved Grenade Launcher Peak State ------------ > --- POWER ------------ Light Ion Engine > --- PROPULSION ------- Light Treads Light Treads > --- UTILITY ---------- High-capacity Storage Unit Seismic Detector > --- WEAPON ----------- Great Maul Scythe > --- INVENTORY -------- Light Ion Engine Light Ion Engine Light Treads Light Treads Light Treads Aluminum Leg High-capacity Matter Pod Signal Interpreter Recoil Stabilizer Weapon Shielding Light Armor Plating Hardlight Generator Hacking Suite High-powered Tractor Beam Medium Laser Small Laser Small Laser Light Assault Rifle Grenade Launcher Improved Grenade Launcher [Rating: 14] Favorites ----------- Power Ion Engine Engine Ion Engine Propulsion Light Treads Treads Light Treads Leg Aluminum Leg Utility Seismic Detector Device Seismic Detector Storage High-capacity Storage Unit Weapon Small Laser Energy Gun Small Laser Launcher Grenade Launcher Impact Weapon Great Maul Slashing Weapon Scythe Build | -11 -10 -10 ------- Run | Yrd Mat Min Slots Evolved . | . . . Power . | . . . Propulsion . | . . . Utility . | . . . Weapon . | . . . Parts Attached 16 | 1 10 5 Power 1 | . . 1 Engine 1 | . . 1 Core . | . . . Reactor . | . . . Propulsion 4 | . 4 . Treads 4 | . 4 . Leg . | . . . Wheel . | . . . Hover . | . . . Flight . | . . . Utility 5 | 1 4 . Device 3 | 1 2 . Storage 2 | . 2 . Processor . | . . . Hackware . | . . . Protection . | . . . Artifact . | . . . Weapon 6 | . 2 4 Energy Gun 2 | . 1 1 Energy Cannon . | . . . Ballistic Gun . | . . . Ballistic Cannon . | . . . Launcher 2 | . 1 1 Special Weapon . | . . . Impact Weapon 1 | . . 1 Slashing Weapon 1 | . . 1 Piercing Weapon . | . . . Special Melee Weapon . | . . . Unidentified Prototypes . | . . . Parts Lost 5 | . . 5 Power 2 | . . 2 Propulsion 2 | . . 2 Utility 1 | . . 1 Weapon . | . . . Highest Loss Streak 4 | . . 4 To Critical Strikes . | . . . Average Slot Usage (%) 99 | . 99 98 Engine 13 | . 14 13 Treads 27 | . 27 27 Device 13 | . 14 13 Storage 14 | . 14 14 Energy Gun 26 | . 26 26 Peak Build Rating 14 | 8 9 14 Average Rating 8 | 7 8 9 On Entrance 7 | 6 8 8 Naked Turns . | . . . Heaviest Build 50 | 14 49 50 Greatest Support 40 | 20 40 40 Greatest Overweight (x) 1 | . 1 1 Average Overweight (x) . | . . 1 Largest Inventory Capacity 20 | 8 20 20 Average Capacity 16 | 8 15 20 Most Carried 20 | 8 17 20 Average Carried 14 | 7 11 19 Final Capacity 20 | 8 20 20 Final Carried 20 | 8 17 20 Class Distribution -------------------- 100% | Mutant Dominant Class ---------------- Mutant | -10/Materials Mutant | -10/Mines Resources | -11 -10 -10 ----------- Run | Yrd Mat Min Matter Collected 610 | 210 109 291 Remotely . | . . . Salvage Created 676 | 150 349 177 Parts 45 | 12 23 10 Haulers Intercepted 2 | . 2 . Recyclers Shooed 1 | . 1 . Parts Field Recycled . | . . . Retrieved Matter . | . . . Parts Self-Destructed . | . . . Prevented . | . . . Kills | -11 -10 -10 ------- Run | Yrd Mat Min Combat Hostiles Destroyed 15 | . 6 9 Melee 2 | . . 2 Guns 11 | . 5 6 AOE 2 | . 1 1 Classes Destroyed 10 | 3 6 1 Worker 2 | 2 . . Builder 2 | . 2 . Tunneler 2 | 2 . . Hauler 2 | . 2 . Recycler 1 | 1 . . Operator 1 | . 1 . Watcher 1 | . 1 . Swarmer 6 | . 2 4 Grunt 6 | . 4 2 Assembled 3 | . . 3 Best Kill Streak 6 | 2 6 3 Combat Bots Only 3 | . 2 3 Max Kills in Single Turn 2 | 1 2 2 Gunslinging . | . . . Exploded 1 | . 1 1 Melee 1 | . . 1 Uniques/NPCs Destroyed . | . . . Combat | -11 -10 -10 -------- Run | Yrd Mat Min Hostile Shots Fired 108 | . 42 66 Missed 33 | . 12 21 Damage Taken 967 | . 328 639 Core 251 | . 43 208 Absorbed by Shields . | . . . Core Remaining (%) 100 | 100 . . Volleys Fired 64 | 13 38 13 Largest 2 | 2 2 2 Hottest 90 | 90 90 90 Shots Fired 126 | 26 74 26 Gun 119 | 26 69 24 Cannon . | . . . Launcher 7 | . 5 2 Special . | . . . Kinetic . | . . . Thermal 119 | 26 69 24 Explosive 7 | . 5 2 Electromagnetic . | . . . Robot Hit Streak 11 | 4 11 3 Robot Miss Streak 4 | 3 2 4 Penetration Max . | . . . Secondary Targets 2 | . . 2 Max Gunslinging Chain 1 | . . 1 Shots Hit Robots 76 | 15 45 16 Core Hits 39 | 6 23 10 Critical Kills 1 | . . 1 Critical Parts Destroyed 1 | . . 1 Critical Strikes 3 | . 1 2 Burn 1 | . 1 . Smash 2 | . . 2 Melee Attacks 4 | . . 4 Impact 3 | . . 3 Slashing 1 | . . 1 Piercing . | . . . Sneak Attacks . | . . . Combat Hostiles . | . . . Follow-up Attacks . | . . . Damage Inflicted 1215 | 173 653 389 Guns 841 | 173 526 142 Cannons . | . . . Explosions 201 | . 127 74 Melee 173 | . . 173 Ramming . | . . . Kinetic . | . . . Thermal 841 | 173 526 142 Explosive 201 | . 127 74 Electromagnetic . | . . . Impact 173 | . . 173 Slashing . | . . . Piercing . | . . . Highest Corruption 6 | . . 6 Average Corruption 6 | . . 6 Corruption Purged . | . . . Corruption Blocked . | . . . Overload Shots . | . . . Overflow Damage 55 | . . 55 Projectiles . | . . . Explosions . | . . . Melee 55 | . . 55 Knockbacks . | . . . Impact . | . . . Kinetic . | . . . Secondary . | . . . Self-Inflicted Damage 40 | . . 40 Shots 1 | . . 1 Rammed . | . . . Targets Rammed . | . . . Kicked . | . . . Crushed . | . . . Highest Temperature 396 | 150 396 210 Average Temperature 97 | 61 121 68 Received Heat Transfer 314 | . 159 155 Effects 3 | . 3 . Interference 3 | . 3 . Siege Activations . | . . . Robots Corrupted . | . . . Combat Hostiles . | . . . Parts Fried . | . . . Impact Corruptions 2 | . . 2 Robots Melted . | . . . Combat Hostiles . | . . . Parts Melted 2 | . 2 . Heat Transferred 2270 | 447 1451 372 Parts Sabotaged . | . . . Parts Stolen . | . . . Parts Stripped . | . . . Power Chain Reactions . | . . . Alert | -11 -10 -10 ------- Run | Yrd Mat Min Peak Influence 198 | 25 152 198 Initial 56 | . 16 56 Average 98 | 11 88 125 Maximum Alert Level . | . . . Low Security (%) 100 | 100 100 100 Level 1 . | . . . Level 2 . | . . . Level 3 . | . . . Level 4 . | . . . Level 5 . | . . . High Security . | . . . Max Security . | . . . Squads Dispatched 3 | . 2 1 Investigation 1 | . . 1 Extermination . | . . . Reinforcement 2 | . 2 . Assault . | . . . Garrison . | . . . Intercept . | . . . Searches Triggered . | . . . Construction Impeded . | . . . Haulers Reinforced . | . . . Active Scanning Responses . | . . . Cargo Convoy Interrupts . | . . . Stealth | -11 -10 -10 --------- Run | Yrd Mat Min Distress Signals 1 | . 1 . Communications Jammed . | . . . Distress Signals . | . . . Times Spotted 34 | . 14 20 Peak Tracking Total 7 | . 4 7 Tactical Retreats 1 | . . 1 Traps | -11 -10 -10 ------- Run | Yrd Mat Min Traps Triggered . | . . . Indirectly . | . . . Trap Hack Attempts . | . . . Triggered . | . . . Disarmed . | . . . Reprogrammed . | . . . Reused . | . . . Traps Extracted . | . . . Installed . | . . . Triggered . | . . . Machines | -11 -10 -10 ---------- Run | Yrd Mat Min Machines Disabled 2 | . . 2 Max in Single Turn 1 | . . 1 Machines Repaired . | . . . Machines Dismantled . | . . . Machines Sabotaged . | . . . Overloaded Fab Kills . | . . . Hacking | -11 -10 -10 --------- Run | Yrd Mat Min Machines Accessed 3 | . 2 1 Terminals 2 | . 2 . Fabricators . | . . . Repair Stations . | . . . Recycling Units . | . . . Scanalyzers . | . . . Garrison Access . | . . . Total Hacks 9 | . 8 1 Successful 5 | . 4 1 Failed 4 | . 4 . Catastrophic . | . . . Database Lockouts . | . . . Manual 1 | . 1 . Terminals 8 | . 8 . Fabricators . | . . . Repair Stations . | . . . Recycling Units . | . . . Scanalyzers . | . . . Garrison Access . | . . . Terminal Hacks 4 | . 3 1 Open Door 1 | . . 1 Emergency Access Points 1 | . 1 . Locate Traps 1 | . 1 . Zone Layout 1 | . 1 . Fabricator Hacks . | . . . Repair Station Hacks . | . . . Recycling Unit Hacks . | . . . Scanalyzer . | . . . Garrison Access Hacks . | . . . Unauthorized Hacks 1 | . 1 . Terminals 1 | . 1 . Track 1 | . 1 . Fabricators . | . . . Repair Stations . | . . . Recycling Units . | . . . Scanalyzers . | . . . Garrison Access . | . . . Data Cores Recovered . | . . . Used . | . . . Hacking Detections 1 | . 1 . Full Trace Events . | . . . Feedback Events . | . . . Feedback Blocked . | . . . Robot Schematics Acquired . | . . . Robots Built . | . . . Authchips . | . . . Time . | . . . Total Robot Build Rating . | . . . Part Schematics Acquired . | . . . Parts Built . | . . . Authchips . | . . . Time . | . . . Total Part Build Rating . | . . . Parts Repaired . | . . . Time . | . . . Parts Recycled . | . . . Recycled Matter . | . . . Retrieved Matter . | . . . Retrieved Components . | . . . Parts Scanalyzed . | . . . Part Schematics Acquired . | . . . Parts Damaged . | . . . Bothacking | -11 -10 -10 ------------ Run | Yrd Mat Min Used RIF Installer . | . . . Robots Hacked . | . . . Non-combat . | . . . Combat . | . . . Robot Hacks Applied . | . . . Relay Couplers Released . | . . . Fabnet Peak Effective % . | . . . Robots Rewired . | . . . Allies Hacked . | . . . Hacks Repelled . | . . . Allies | -11 -10 -10 -------- Run | Yrd Mat Min Total Allies . | . . . Largest Group . | . . . Highest-Rated Group . | . . . Highest-Rated Ally . | . . . Total Orders . | . . . Ally Attacks . | . . . Total Damage . | . . . Kills . | . . . Allies Corrupted . | . . . Allies Melted . | . . . Intel | -11 -10 -10 ------- Run | Yrd Mat Min Robot Analysis Total . | . . . Derelict Logs Recovered 1 | . . 1 Drone Launches . | . . . Drone Recoveries . | . . . Exploration | -11 -10 -10 ------------- Run | Yrd Mat Min Turns Passed 1429 | 138 610 681 Spaces Moved 567 | 33 282 252 Core . | . . . Treads 524 | . 272 252 Legs 43 | 33 10 . Wheels . | . . . Hover . | . . . Flight . | . . . Fastest Speed 120 | 120 120 240 Average Speed 195 | 120 163 240 Slowest Speed 240 | 120 240 240 Overloaded Moves . | . . . Propulsion Burnouts . | . . . Robots Hopped . | . . . Cave-ins Triggered . | . . . Exploration Rate (%) 37 | 4 62 47 Regions Visited 2 Branch Regions 1 Pre-discovered Areas . | . . . Known Exits Taken . | . . . Unknown Exits Taken 2 | 1 1 . Scrap Searched 2 | . . 2 Spaces Dug 12 | . 12 . Terrain Destroyed 35 | . 23 12 Melee . | . . . Projectile . | . . . AOE 35 | . 23 12 Terrain Rammed . | . . . Walls Destroyed . | . . . Machines Disabled . | . . . Actions | -11 -10 -10 --------- Run | Yrd Mat Min Total 760 | 105 355 300 Wait 78 | 57 13 8 Move 565 | 32 281 252 Hop . | . . . Pick Up 21 | 2 8 11 Fast Attach 3 | 1 1 1 Attach . | . . . Detach 1 | . 1 . Swap 13 | . 9 4 Drop 12 | . 4 8 Fire 64 | 13 38 13 Melee 3 | . . 3 Ram . | . . . Kick . | . . . Crush . | . . . Escape Stasis . | . . . Rewire . | . . . Trap . | . . . Miscellaneous . | . . . Route ------- -11/Scrapyard -10/Materials (discovered 3 exits: [*Mat x2] / *Min) -10/Mines History --------- Turn | Location | Event 10 | -11/Scrapyard | Discovered new exit (range 3) 139 | -11/Scrapyard | Entered Materials 319 | -10/Materials | Build established: Mutant 436 | -10/Materials | Discovered new exit (range 11) 556 | -10/Materials | Discovered new exit (range 4) 739 | -10/Materials | Discovered new exit (range 5) 749 | -10/Materials | Entered Mines 781 | -10/Mines | Learned Materials emergency access door positions 823 | -10/Mines | Met a Derelict bent on vengeance 983 | -10/Mines | Met a Derelict shopkeep closing up shop 1357 | -10/Mines | Assembled infested the area 1362 | -10/Mines | Assisted by a Guerilla fighting off Assembled 1415 | -10/Mines | Core integrity fell below 50% 1430 | -10/Mines | Core integrity fell below 20% 1430 | -10/Mines | Destroyed by as-59398 with Assembled Rifle Last Messages --------------- 01401_ HV Slug penetrates Wall. 01401_ 3J-DPM(h) destroyed. 01404_ U-05 Engineer destroyed. 01412_ as-64347 suffers critical hit (Smash). 01412_ Destroyed Asb. F-torch. 01412_ as-64347 system corrupted by crushing effect. 01412_ as-64347 destroyed. 01415_ Acquired 56 matter. 01420_ Acquired 8 matter. 01425_ Destroyed Asb. Hover Unit. 01425_ as-06436 system corrupted by crushing effect. 01425_ K-01 Serf collects debris. 01426_ K-01 Serf destroyed. 01426_ Lgt. Ion Engine destroyed. 01427_ Lgt. Treads destroyed. 01427_ Seismic Detector destroyed. 01427_ System corrupted by crushing effect (+3). 01428_ as-06436 suffers critical hit (Smash). 01428_ as-06436 destroyed. 01428_ Lgt. Treads destroyed. Map ----- +----------------------------------------------------+ | ?????????????????????????????????????????????????? | | ?????????????????????????????????????????????????? | | ?????????????????????????????????????????????????? | | ?????????????????????????????????????????????????? | | ?????????????????????????????????????????????????? | | ?????????????????????????????????????????????????? | | ?????????????????????????????????????????????????? | | ?????????????????????????????????????????????????? | | ?????????????????????????????????????????????????? | | ?????????????????????????????????????????????????? | | ?????????????????????????????????????????????????? | | ?????????????????????????????????????????????????? | | ???????????????????????????????#?????????????????? | | ??????????????????????????????C#?????????????????? | | ?????????????????????????????? #?????????????????? | | ?????????????????????????????% ##????????????????? | | ????????????????????????????? ????????????????? | | ????????????????????????????# ?????????????????? | | ??????????????????????????## ??????????????????? | | ???????????????## ??????###* ???????????????????? | | ??????????????? ???? =%! ???????????????????? | | ?????????????? ???%aa| ????????????????????? | | ?????????????? ????#aa=?????????????????????? | | ?????????????? ?????#=a##????????????????????? | | ????????????## ??????#$a%#????????????????????? | | ???????????## ???????#@ #?????????????????????? | | ??????????## #???????# #?????????????????????? | | ?????????## #??????##] #?????????????????????? | | ?????????# #??????#* =#?????????????????????? | | ?????????# ##?????#;% #?????????????????????? | | ?????????# ##???#"!a%#?????????????????????? | | ?????????# #???##=###??????#??????????????? | | ?????????# #???#; #??????? #??????????????? | | ?????????## #???##|#??????? ??????????????? | | ??????????# #????# #??????? #??????????????? | | ??????????# # ##????# ##?????? #?####?????????? | | ??????????# !## ##???## ##????? ## ##????????? | | ??????????#= ## ##### ##??## #????????? | | ??????????# * = ! #??# #????????? | | ??????????#!=### #### #????????????? | | ??????????# #?## [ #?????????????? | | ??????????# #??## * ##?????????????? | | #####?????# #???## # ######??????????????? | | ##????# #????###### ## #???????????????????? | | #????# #???########### ###?????????????????? | | ###### #??# #?????????????????? | | ## #?## "" " % ###########???????? | | ### #?## " #???????? | | ### ######?## #???????? | | ## #???????# % ######## #???????? | +----------------------------------------------------+ Best States ------------- Heat Dissipation 25 Energy Generation 10 Energy Capacity 250 Matter Stores 300 Matter Capacity 300 Sight Range 16 Terrain Scan Range 16 Terrain Scan Density 10 Evasion (%) 55 Recoil Reduction 2 Item Schematics ----------------- None Robot Schematics ------------------ None Fabricated ------------ Nothing Alien Tech Used ----------------- None Achievements -------------- None Challenges ------------ None Game ------ Seed PoweredDefenseNanovents Manual? 0 Play Time 00:15:30 Cumulative 164.7 hours Start 2024.09.08 @ 18:22:36 End 2024.09.08 @ 18:34:34 Sessions 1 Manual Loads 0 Difficulty Rogue Special Mode None Game No. 301 Rogue 297 Adventurer 0 Explorer 4 Win Type - Total 0 Types 0/0/0/0/0/0/0/0/0 Lore% 20 Gallery% 46 Achievement% 35 Wizard Run 0 Options --------- Layout 1 ASCII 0 Keyboard 1 Movement Arrows Keybinds 0 Fullscreen 1 Font 32/SmallcapsGlow Map View 130x35 Zoom Use 0% Tactical HUD 1 Map Filters NONE Filters NONE Steam 0 RUN: aedb0522-00aa-417d-9a75-64098f56b65a